bitfinex-derivatives/quotes_SOLF0:USTF0_20241203
["timestamp","ask_amount","ask_price","bid_price","bid_amount"]
[1733225500546,1.3086,226.02,225.9,3.37497121]
[1733225500547,12.40308871,225.98,225.9,3.37497121]
[1733225500739,12.40308871,225.98,225.88,1.2728]
[1733225500740,2.18,225.97,225.88,1.2728]
[1733225501748,2.18,225.97,225.89,2.2131]
[1733225502445,2.18,225.97,225.88,1.2728]
[1733225503546,2.18,225.97,225.88,3.4859]
[1733225503749,2.18,225.97,225.88,1.2728]
[1733225505046,2.18,225.97,225.89,2.213]
[1733225505849,2.18,225.97,225.9,2.2129]
[1733225506544,1.3658,226.0,225.94,2.2126]
[1733225506745,3.4886,226.02,225.9,2.18]
[1733225507250,3.4886,226.02,225.91,2.2128]
[1733225508254,3.4886,226.02,225.92,2.2128]
[1733225508848,3.4886,226.02,225.93,2.2127]
[1733225509050,3.4886,226.02,225.9,2.18]
[1733225509544,42.91715863,226.03,225.9,2.18]
[1733225509545,30.51406992,226.03,225.9,14.58308871]
[1733225509749,0.30372,226.09,225.94,12.40308871]
[1733225510247,0.30372,226.09,225.95,2.18]
[1733225510753,0.30372,226.09,225.99,2.212]
[1733225511153,0.30372,226.09,226.0,2.212]
[1733225511358,2.18,226.08,226.0,2.212]
[1733225511852,2.18,226.08,225.99,2.2121]
[1733225512349,12.40308871,226.07,225.95,2.18]
[1733225513453,12.40308871,226.07,225.93,2.18]
[1733225514354,12.40308871,226.07,225.97,2.2123]
[1733225515050,12.40308871,226.07,225.93,2.18]
[1733225515955,12.40308871,226.07,225.95,2.2124]
[1733225516957,12.40308871,226.04,225.95,2.2124]
[1733225518260,2.18,226.03,225.95,2.2124]
[1733225520154,2.18,226.03,225.93,2.18]
[1733225520361,2.18,226.03,225.88,1.2728]
[1733225520556,12.40308871,226.01,225.88,3.4528]
[1733225521459,12.40308871,225.98,225.89,2.2131]
[1733225521658,14.58308871,225.98,225.88,1.2728]
[1733225523968,14.58308871,225.98,225.86,59.76236728]
[1733225524164,14.58308871,225.98,225.78,1.313]
[1733225524359,12.40308871,225.95,225.82,2.18]
[1733225524664,12.40308871,225.95,225.84,2.2135]
[1733225525262,12.40308871,225.95,225.79,12.40308871]
[1733225525461,1.2745,225.97,225.79,12.40308871]
[1733225525462,12.40308871,225.92,225.8,2.18]
[1733225525665,2.18,225.92,225.8,2.18]
[1733225525864,2.18,225.92,225.83,2.2136]
[1733225526062,2.18,225.92,225.8,2.18]
[1733225527667,14.58308871,225.92,225.8,2.18]
[1733225527972,14.58308871,225.92,225.79,14.58308871]
[1733225528372,14.58308871,225.92,225.81,2.2139]
[1733225528874,2.18,225.92,225.79,12.40308871]
[1733225529174,2.18,225.92,225.82,2.2137]
[1733225529875,3.5504,225.92,225.82,2.2137]
[1733225530174,3.5504,225.92,225.81,2.2138]
[1733225530773,3.5504,225.92,225.82,2.2138]
[1733225530970,3.5504,225.92,225.78,12.40308871]
[1733225531574,3.5504,225.92,225.81,2.2139]
[1733225531775,3.5504,225.92,225.78,12.40308871]
[1733225532069,12.40308871,225.9,225.78,12.40308871]
[1733225532270,12.40308871,225.9,225.76,2.18]
[1733225532469,12.40308871,225.9,225.77,1.10788051]
[1733225532672,12.40308871,225.9,225.76,2.18]
[1733225533677,7.95985725,225.84,225.77,7.95985725]
[1733225534375,2.18,225.85,225.79,7.95985725]
[1733225534576,2.18,225.88,225.81,7.95985725]
[1733225535678,2.18,225.88,225.8,10.17375725]
[1733225535873,7.95985725,225.85,225.79,2.2141]
[1733225538180,7.95985725,225.85,225.77,7.95985725]
[1733225538379,7.95985725,225.85,225.77,10.17415725]
[1733225538879,7.95985725,225.83,225.76,2.2143]
[1733225539573,7.95985725,225.83,225.74,2.2145]
[1733225539782,7.95985725,225.81,225.71,4.0933]
[1733225539977,7.95985725,225.79,225.71,12.05315725]
[1733225541278,7.95985725,225.79,225.7,2.18]
[1733225541477,7.95985725,225.79,225.7,10.13985725]
[1733225541684,7.95985725,225.77,225.66,2.18]
[1733225541883,2.18,225.82,225.66,2.18]
[1733225542184,7.95985725,225.78,225.71,7.95985725]
[1733225542780,7.95985725,225.76,225.64,6.2311]
[1733225542980,7.95985725,225.72,225.65,2.2153]
[1733225543188,10.13985725,225.72,225.65,2.2153]
[1733225543384,7.95985725,225.7,225.62,7.95985725]
[1733225543879,7.95985725,225.7,225.6,2.18]
[1733225544081,7.95985725,225.7,225.63,7.95985725]
[1733225545185,7.95985725,225.7,225.6,2.18]
[1733225545384,7.95985725,225.7,225.62,7.95985725]
[1733225545584,2.18,225.72,225.62,2.2157]
[1733225546182,2.18,225.72,225.6,14.63186596]
[1733225546387,2.18,225.72,225.6,15.94546596]
[1733225547282,2.18,225.72,225.63,2.2156]
[1733225547987,2.18,225.72,225.64,2.2155]
[1733225548381,2.18,225.72,225.47,0.28292274]
[1733225548382,12.45186596,225.67,225.47,0.28292274]
[1733225548585,14.63186596,225.72,225.48,1.10918621]
[1733225548586,12.45186596,225.62,225.48,1.10918621]
[1733225548787,12.45186596,225.59,225.47,4.0782]
[1733225549085,12.45186596,225.59,225.48,2.217]
[1733225549086,14.63186596,225.59,225.48,2.217]
[1733225549285,2.18,225.59,225.47,16.53006596]
[1733225549887,1.2644,225.61,225.53,2.2166]
[1733225550088,2.18,225.63,225.53,2.2166]
[1733225551286,2.18,225.63,225.51,4.3967]
[1733225551892,12.45186596,225.61,225.52,2.2167]
[1733225552283,12.45186596,225.61,225.51,2.18]
[1733225552590,12.45186596,225.58,225.47,6.2582]
[1733225552790,14.63186596,225.58,225.48,1.10942289]
[1733225552985,14.63186596,225.58,225.48,2.217]
[1733225553186,14.63186596,225.58,225.47,4.0782]
[1733225554387,14.63186596,225.58,225.48,1.10951712]
[1733225554590,12.45186596,225.55,225.45,2.18]
[1733225554893,12.45186596,225.55,225.45,4.3973]
[1733225555286,1.3497,225.57,225.4,12.45186596]
[1733225555287,12.45186596,225.52,225.43,2.2176]
[1733225555493,12.45186596,225.52,225.4,2.18]
[1733225555494,14.63186596,225.52,225.4,2.18]
[1733225555688,1.3497,225.57,225.43,2.2175]
[1733225555889,1.3497,225.57,225.41,12.45186596]
[1733225556093,13.80156596,225.57,225.42,2.88486165]
[1733225556394,13.80156596,225.57,225.43,2.88486165]
[1733225556689,13.80156596,225.57,225.44,1.10956217]
[1733225556894,13.80156596,225.57,225.45,3.28956217]
[1733225557193,13.80156596,225.57,225.46,1.10960116]
[1733225557384,13.80156596,225.57,225.45,2.18]
[1733225557586,13.80156596,225.57,225.49,2.217]
[1733225557894,2.7003,225.6,225.47,12.45186596]
[1733225557895,16.00646596,225.6,225.47,12.45186596]
[1733225558096,16.00646596,225.6,225.48,4.17993103]
[1733225558293,16.00646596,225.6,225.49,1.10939655]
[1733225558490,16.00646596,225.6,225.48,1.2955]
[1733225558996,16.00646596,225.6,225.49,1.10946398]
[1733225559194,14.63186596,225.6,225.5,3.28944685]
[1733225559397,14.63186596,225.6,225.5,2.18]
[1733225559900,14.63186596,225.6,225.51,1.1094313]
[1733225560095,12.45186596,225.63,225.57,2.2162]
[1733225560795,1.3016,225.65,225.59,2.216]
[1733225561397,1.3016,225.65,225.58,2.2161]
[1733225562501,1.3016,225.65,225.59,1.10913678]
[1733225562701,1.3016,225.65,225.6,1.10913678]
[1733225563001,1.3016,225.65,225.58,2.2161]
[1733225563203,1.3016,225.65,225.59,2.88374622]
[1733225563503,1.3016,225.65,225.6,1.10913316]
[1733225563800,1.3016,225.65,225.53,0.28121027]
[1733225563801,12.45186596,225.63,225.5,0.28121027]
[1733225564001,12.45186596,225.58,225.51,13.79139124]
[1733225564194,4.46496893,225.58,225.52,16.00809124]
[1733225564400,4.46496893,225.58,225.53,3.34182091]
[1733225564603,4.46496893,225.58,225.54,8.44457487]
[1733225564802,4.46496893,225.58,225.55,2.88416528]
[1733225565003,4.46496893,225.58,225.56,1.10929434]
[1733225565202,2.18,225.59,225.57,1.10929434]
[1733225565403,2.18,225.59,225.58,1.10929434]
[1733225565903,2.18,225.59,225.53,2.2166]
[1733225566103,2.18,225.59,225.54,2.88435573]
[1733225566305,2.18,225.59,225.55,2.88435573]
[1733225566605,2.18,225.59,225.56,1.10936759]
[1733225566901,2.18,225.59,225.57,1.10936759]
[1733225567101,2.18,225.59,225.58,1.10936759]
[1733225567894,14.63186596,225.64,225.58,1.10936759]
[1733225568196,14.63186596,225.64,225.59,1.10936759]
[1733225568398,14.63186596,225.64,225.6,1.10936759]
[1733225568705,14.63186596,225.64,225.61,1.10923151]
[1733225568901,14.63186596,225.64,225.58,2.2161]
[1733225569096,14.63186596,225.64,225.59,2.88390503]
[1733225569304,14.63186596,225.64,225.6,2.88387675]
[1733225569606,14.63186596,225.64,225.61,1.10919424]
[1733225569904,14.63186596,225.64,225.58,2.2161]
[1733225570102,14.63186596,225.64,225.59,1.10916763]
[1733225570304,14.63186596,225.64,225.6,1.10916763]
[1733225570505,12.45186596,225.64,225.61,1.10916763]
[1733225570702,12.45186596,225.64,225.58,2.2161]
[1733225571004,12.45186596,225.64,225.59,2.88386878]
[1733225571305,12.45186596,225.64,225.6,1.1091803]
[1733225571499,12.45186596,225.64,225.61,1.1091803]
[1733225571705,12.45186596,225.64,225.58,2.2161]
[1733225572005,12.45186596,225.64,225.59,1.10918065]
[1733225572206,12.45186596,225.64,225.6,1.10918065]
[1733225572406,12.45186596,225.64,225.54,2.18]
[1733225572706,12.45186596,225.64,225.55,13.81366781]
[1733225572905,12.45186596,225.64,225.56,8.45276838]
[1733225573104,12.45186596,225.64,225.57,2.8838557]
[1733225573302,12.45186596,225.64,225.58,5.09990281]
[1733225573510,12.45186596,225.64,225.54,2.18]
[1733225573705,12.45186596,225.64,225.55,13.81784181]
[1733225573907,12.45186596,225.64,225.58,2.216]
[1733225574104,12.45186596,225.64,225.59,1.10919027]
[1733225574405,12.45186596,225.64,225.6,1.10919027]
[1733225574612,2.18,225.65,225.61,2.2158]
[1733225574806,12.45186596,225.67,225.62,1.10907775]
[1733225575006,12.45186596,225.67,225.61,2.2158]
[1733225575208,12.45186596,225.67,225.59,2.2159]
[1733225575407,12.45186596,225.67,225.62,1.10907775]
[1733225575601,12.45186596,225.67,225.54,2.46200219]
[1733225575912,12.45186596,225.67,225.55,13.82661134]
[1733225576110,12.45186596,225.67,225.56,6.23933965]
[1733225576409,12.45186596,225.67,225.58,2.216]
[1733225576607,12.45186596,225.61,225.59,1.10910729]
[1733225576808,14.63186596,225.6,225.5,0.28200219]
[1733225577001,12.45186596,225.54,225.51,1.77499165]
[1733225577314,12.45186596,225.54,225.46,0.28200219]
[1733225577511,12.45186596,225.54,225.47,5.57953836]
[1733225577808,12.45186596,225.54,225.42,4.0257]
[1733225577809,12.45186596,225.5,225.42,4.0257]
[1733225578108,12.45186596,225.5,225.37,0.28200219]
[1733225578109,12.45186596,225.47,225.37,0.28200219]
[1733225578311,12.45186596,225.47,225.38,19.45666703]
[1733225578511,12.45186596,225.47,225.39,12.73278579]
[1733225578807,12.45186596,225.44,225.4,1.77544163]
[1733225579011,12.45186596,225.44,225.34,5.02950219]
[1733225579211,2.18,225.45,225.35,12.7377984]
[1733225579509,2.18,225.45,225.36,3.36245262]
[1733225579707,2.18,225.45,225.32,1.54880219]
[1733225579708,12.45186596,225.4,225.32,1.54880219]
[1733225580101,12.45186596,225.4,225.34,2.2185]
[1733225580304,14.63186596,225.4,225.25,0.28200219]
[1733225580605,14.63186596,225.4,225.33,2.2186]
[1733225580808,12.45186596,225.4,225.28,2.18]
[1733225581209,12.45186596,225.43,225.3,12.45186596]
[1733225582211,12.45186596,225.43,225.35,2.2184]
[1733225582406,12.45186596,225.43,225.33,2.18]
[1733225583406,12.45186596,225.43,225.34,2.2184]
[1733225583610,12.45186596,225.43,225.33,2.18]
[1733225584018,12.45186596,225.43,225.36,2.2183]
[1733225584519,12.45186596,225.43,225.33,4.3985]
[1733225584719,12.45186596,225.43,225.34,10.22305624]
[1733225584926,12.45186596,225.4,225.35,5.02505974]
[1733225585121,12.45186596,225.4,225.31,0.28311133]
[1733225585319,12.45186596,225.37,225.32,5.02415111]
[1733225585516,4.45731315,225.37,225.27,0.28311133]
[1733225585717,12.45186596,225.34,225.28,12.4478433]
[1733225585916,14.63186596,225.34,225.22,0.28311133]
[1733225586120,14.63186596,225.34,225.23,19.23295188]
[1733225586324,12.45186596,225.31,225.26,0.29976]
[1733225588815,12.45186596,225.31,225.27,1.11077283]
[1733225589021,12.45186596,225.31,225.28,1.11074536]
[1733225589223,12.45186596,225.31,225.26,0.29976]
[1733225589426,2.32,225.32,225.26,0.29976]
[1733225589427,12.45186596,225.28,225.27,1.11076259]
[1733225589623,12.45186596,225.28,225.27,1.11075933]
[1733225589822,12.45186596,225.28,225.26,0.29976]
[1733225590225,12.45186596,225.31,225.26,0.29976]
[1733225590419,14.77186596,225.31,225.26,0.29976]
[1733225591322,14.77186596,225.31,225.27,1.11077801]
[1733225591522,12.45186596,225.34,225.26,0.29976]
[1733225591728,14.77186596,225.34,225.27,5.0175338]
[1733225591923,14.77186596,225.34,225.28,6.12812524]
[1733225592125,14.77186596,225.34,225.29,1.11071811]
[1733225592429,14.77186596,225.34,225.26,2.51906]
[1733225592430,14.77186596,225.34,225.26,0.29976]
[1733225592632,1.3463,225.36,225.3,2.2188]
[1733225593130,1.3463,225.36,225.26,0.29976]
[1733225593328,14.77186596,225.37,225.27,10.1997547]
[1733225593633,12.45186596,225.37,225.28,11.31015828]
[1733225593830,12.45186596,225.37,225.29,6.12700497]
[1733225594128,12.45186596,225.37,225.3,13.5300163]
[1733225594329,46.69773039,225.39,225.31,6.12700497]
[1733225594530,46.69773039,225.39,225.32,6.56767218]
[1733225594725,46.69773039,225.39,225.33,1.11056274]
[1733225594926,46.69773039,225.39,225.27,2.32]
[1733225595131,44.37773039,225.39,225.28,19.15643268]
[1733225595434,2.32,225.41,225.29,32.45488637]
[1733225595628,14.77186596,225.43,225.35,2.2184]
[1733225596234,14.77186596,225.43,225.34,2.2185]
[1733225596435,14.77186596,225.43,225.29,12.45186596]
[1733225596737,12.45186596,225.43,225.3,13.52524243]
[1733225596932,12.45186596,225.43,225.31,13.52524243]
[1733225597235,12.45186596,225.43,225.32,6.66799391]
[1733225597435,12.45186596,225.43,225.33,6.12436051]
[1733225597736,12.45186596,225.43,225.34,1.11022912]
[1733225597936,12.45186596,225.43,225.35,1.11022912]
[1733225598131,12.45186596,225.43,225.35,2.2184]
[1733225598336,12.45186596,225.43,225.32,2.32]
[1733225598536,12.45186596,225.43,225.33,1.11019275]
[1733225598736,12.45186596,225.43,225.34,1.11019275]
[1733225598937,12.45186596,225.43,225.32,2.32]
[1733225599237,12.45186596,225.43,225.33,1.11019218]
[1733225599434,12.45186596,225.43,225.32,2.32]
[1733225599630,12.45186596,225.43,225.33,1.11019336]
[1733225599837,12.45186596,225.43,225.32,2.32]
[1733225600132,2.32,225.45,225.28,1.3738]
[1733225600133,12.45186596,225.4,225.28,1.3738]
[1733225600333,2.32,225.4,225.28,1.3738]
[1733225600537,2.32,225.45,225.32,12.45186596]
[1733225600738,14.77186596,225.45,225.32,14.77186596]
[1733225601038,14.77186596,225.45,225.32,2.32]
[1733225602031,1.3592,225.47,225.41,2.2178]
[1733225602640,1.3592,225.47,225.37,2.32]
[1733225602942,12.45186596,225.51,225.37,2.32]
[1733225603137,2.32,225.52,225.37,2.32]
[1733225603138,12.45186596,225.48,225.37,2.32]
[1733225603332,4.0767,225.54,225.28,13.82566596]
[1733225603333,12.45186596,225.45,225.32,2.32]
[1733225603533,1.286,225.44,225.32,2.32]
[1733225604239,1.286,225.44,225.35,2.2184]
[1733225604641,1.286,225.44,225.32,2.32]
[1733225604836,1.286,225.44,225.37,2.2182]
[1733225606140,1.286,225.44,225.38,2.2181]
[1733225606338,1.286,225.44,225.32,2.32]
[1733225606638,14.77186596,225.45,225.34,12.45186596]
[1733225606639,2.32,225.45,225.34,12.45186596]
[1733225606942,12.45186596,225.48,225.34,12.45186596]
[1733225607143,12.45186596,225.48,225.35,1.2955]
[1733225607735,12.45186596,225.48,225.35,2.6346]
[1733225607935,12.45186596,225.48,225.42,2.2177]
[1733225608143,2.32,225.49,225.38,2.32]
[1733225609738,12.45186596,225.51,225.38,2.32]
[1733225609943,1.3389,225.53,225.4,12.45186596]
[1733225610138,2.32,225.55,225.43,12.45186596]
[1733225610340,2.32,225.56,225.48,2.217]
[1733225611746,12.45186596,225.51,225.44,2.2175]
[1733225611943,14.77186596,225.51,225.44,2.2175]
[1733225612143,14.77186596,225.51,225.4,2.32]
[1733225612347,1.3037,225.5,225.4,2.32]
[1733225612848,1.3037,225.5,225.41,2.2177]
[1733225613049,1.3037,225.5,225.4,2.32]
[1733225614548,1.3037,225.5,225.42,2.2176]
[1733225614745,1.3037,225.5,225.4,2.32]
[1733225614949,1.3037,225.5,225.43,2.2175]
[1733225615146,12.45186596,225.48,225.35,1.2955]
[1733225615345,12.45186596,225.45,225.34,2.32]
[1733225615549,14.77186596,225.45,225.34,2.32]
[1733225616148,14.77186596,225.45,225.36,2.2182]
[1733225616352,14.77186596,225.45,225.34,2.32]
[1733225616950,14.77186596,225.45,225.39,2.2179]
[1733225617154,2.32,225.45,225.34,2.32]
[1733225617448,12.45186596,225.48,225.36,12.45186596]
[1733225617657,12.45186596,225.48,225.37,2.26]
[1733225618151,12.45186596,225.48,225.4,2.2179]
[1733225618356,12.45186596,225.48,225.37,2.26]
[1733225618847,12.45186596,225.48,225.42,2.2177]
[1733225619254,12.45186596,225.48,225.37,2.26]
[1733225619655,12.45186596,225.48,225.41,2.2177]
[1733225619850,12.45186596,225.48,225.37,2.26]
[1733225620257,12.45186596,225.48,225.41,2.2177]
[1733225620457,12.45186596,225.48,225.37,2.26]
[1733225621155,3.5719,225.49,225.37,2.26]
[1733225621351,1.3037,225.5,225.37,2.26]
[1733225621554,1.3037,225.5,225.39,12.45186596]
[1733225621950,12.45186596,225.54,225.39,12.45186596]
[1733225622152,12.45186596,225.54,225.4,2.49611231]
[1733225622460,12.45186596,225.54,225.47,2.2171]
[1733225622656,2.26,225.55,225.44,2.26]
[1733225622855,2.26,225.55,225.49,2.217]
[1733225623551,2.26,225.55,225.5,2.2169]
[1733225624259,2.26,225.55,225.51,2.2168]
[1733225624454,1.3328,225.59,225.44,2.26]
[1733225624455,1.3328,225.59,225.45,12.45186596]
[1733225624650,1.3328,225.59,225.53,2.2166]
[1733225625055,1.3328,225.59,225.49,2.26]
[1733225626058,1.3328,225.59,225.52,2.2167]
[1733225626667,1.3328,225.59,225.53,2.2166]
[1733225627260,1.3328,225.59,225.49,2.26]
[1733225628560,1.3328,225.59,225.53,2.2165]
[1733225628761,1.3328,225.59,225.49,2.26]
[1733225628958,2.26,225.6,225.54,2.2164]
[1733225629356,14.71186596,225.6,225.49,2.26]
[1733225631064,14.71186596,225.6,225.52,2.2166]
[1733225633875,14.71186596,225.6,225.51,2.2168]
[1733225635166,14.71186596,225.6,225.5,2.2169]
[1733225635768,14.71186596,225.6,225.51,2.2168]
[1733225636268,12.45186596,225.57,225.45,1.3834]
[1733225636463,12.45186596,225.57,225.46,2.26]
[1733225636868,12.45186596,225.57,225.48,2.217]
[1733225637264,12.45186596,225.57,225.46,2.26]
[1733225637472,12.45186596,225.57,225.49,2.217]
[1733225638872,12.45186596,225.57,225.46,2.26]
[1733225640066,12.45186596,225.57,225.5,2.2169]
[1733225640265,2.26,225.6,225.48,12.45186596]
[1733225640470,31.88933801,225.62,225.51,12.45186596]
[1733225640671,31.88933801,225.62,225.52,2.26]
[1733225641073,31.88933801,225.62,225.57,2.2162]
[1733225641271,31.88933801,225.62,225.52,2.26]
[1733225642178,1.3177,225.62,225.52,2.26]
[1733225642372,1.3177,225.62,225.57,2.2161]
[1733225643488,1.3177,225.62,225.58,2.2161]
[1733225643775,2.26,225.66,225.52,2.26]
[1733225643975,2.26,225.66,225.59,2.2159]
[1733225644177,1.2726,225.67,225.57,2.26]
[1733225644876,1.3939,225.7,225.57,14.71186596]
[1733225645179,1.272,225.81,225.6,12.45186596]
[1733225645180,1.3664,225.74,225.6,12.45186596]
[1733225645473,12.45186596,225.73,225.6,12.45186596]
[1733225645681,12.45186596,225.73,225.65,2.2154]
[1733225645884,12.45186596,225.73,225.61,2.26]
[1733225646769,12.45186596,225.73,225.65,2.2154]
[1733225646973,12.45186596,225.73,225.61,2.26]
[1733225647375,12.45186596,225.73,225.61,4.4958]
[1733225647678,12.45186596,225.73,225.57,12.45186596]
[1733225647882,12.45186596,225.73,225.61,2.28]
[1733225648074,12.45186596,225.73,225.57,12.45186596]
[1733225648380,12.45186596,225.73,225.58,2.28]
[1733225650379,12.45186596,225.73,225.64,2.2155]
[1733225650572,12.45186596,225.73,225.58,2.28]
[1733225651071,12.45186596,225.73,225.62,2.2157]
[1733225651278,12.45186596,225.7,225.56,57.62535296]
[1733225651474,12.45186596,225.67,225.6,2.2159]
[1733225651876,12.45186596,225.67,225.57,2.28]
[1733225653073,1.3405,225.69,225.48,12.45186596]
[1733225653074,12.45186596,225.64,225.48,12.45186596]
[1733225653273,12.45186596,225.61,225.53,2.2166]
[1733225653673,12.45186596,225.61,225.54,2.2165]
[1733225654286,12.45186596,225.61,225.52,2.2167]
[1733225654479,1.3735,225.6,225.52,2.2167]
[1733225654879,1.3735,225.6,225.49,2.28]
[1733225655981,1.3735,225.6,225.52,2.2167]
[1733225658778,1.3956,225.65,225.46,4.078]
[1733225658779,3.6756,225.65,225.51,12.45186596]
[1733225659187,3.6756,225.65,225.56,2.2162]
[1733225660385,12.45186596,225.6,225.51,2.28]
[1733225660788,12.45186596,225.6,225.53,2.2165]
[1733225661183,12.45186596,225.6,225.51,2.28]
[1733225661488,12.45186596,225.6,225.54,2.2165]
[1733225662589,12.45186596,225.63,225.51,2.28]
[1733225662788,1.3956,225.65,225.51,14.73186596]
[1733225662989,12.45186596,225.66,225.59,2.2159]
[1733225663289,12.45186596,225.66,225.56,2.28]
[1733225663483,12.45186596,225.66,225.57,2.2161]
[1733225664487,12.45186596,225.66,225.58,2.2161]
[1733225664884,12.45186596,225.66,225.56,2.28]
[1733225665785,12.45186596,225.66,225.59,2.2159]
[1733225666083,12.45186596,225.66,225.56,2.28]
[1733225666688,12.45186596,225.66,225.58,2.2161]
[1733225666887,12.45186596,225.66,225.56,2.28]
[1733225668989,12.45186596,225.66,225.57,2.2162]
[1733225669187,12.45186596,225.66,225.56,2.28]
[1733225669586,12.45186596,225.66,225.57,2.2162]
[1733225669886,12.45186596,225.66,225.55,2.28]
[1733225670286,12.45186596,225.66,225.57,2.2162]
[1733225670485,12.45186596,225.66,225.55,2.28]
[1733225670886,12.45186596,225.66,225.59,2.216]
[1733225671486,12.45186596,225.66,225.6,2.2159]
[1733225671888,12.45186596,225.66,225.55,2.28]
[1733225671889,14.73186596,225.69,225.55,2.28]
[1733225672190,12.45186596,225.66,225.55,2.28]
[1733225673390,12.45186596,225.66,225.57,2.2162]
[1733225675485,12.45186596,225.66,225.46,4.078]
[1733225675486,12.45186596,225.63,225.56,2.2163]
[1733225676790,12.45186596,225.63,225.52,2.2167]
[1733225677093,1.3752,225.62,225.52,2.26]
[1733225677484,1.3752,225.62,225.48,12.45186596]
[1733225677686,1.3752,225.62,225.49,2.26]
[1733225678088,1.3752,225.62,225.54,2.2165]
[1733225678694,1.3752,225.62,225.49,2.26]
[1733225679296,1.3752,225.62,225.56,2.2162]
[1733225681801,1.3752,225.62,225.54,2.2165]
[1733225682002,1.3752,225.62,225.49,2.26]
[1733225682301,1.3752,225.62,225.54,2.2165]
[1733225682504,1.3752,225.62,225.47,57.6444754]
[1733225682505,12.45186596,225.6,225.47,57.6444754]
[1733225682801,12.45186596,225.57,225.47,57.6444754]
[1733225683002,12.45186596,225.57,225.49,2.217]
[1733225683201,12.45186596,225.57,225.47,57.6444754]
[1733225683497,12.45186596,225.57,225.48,2.217]
[1733225683701,12.45186596,225.57,225.47,57.6444754]
[1733225683997,12.45186596,225.51,225.4,2.6568]
[1733225684202,12.45186596,225.51,225.41,2.26]
[1733225685204,12.45186596,225.51,225.44,2.2174]
[1733225687304,12.45186596,225.51,225.42,2.2176]
[1733225687506,12.45186596,225.51,225.41,2.26]
[1733225687805,12.45186596,225.51,225.45,2.2173]
[1733225688002,1.2821,225.53,225.41,2.26]
[1733225688409,2.26,225.54,225.41,2.26]
[1733225688610,12.45186596,225.57,225.41,2.26]
[1733225689409,12.45186596,225.57,225.48,2.217]
[1733225689806,12.45186596,225.57,225.46,2.26]
[1733225690203,12.45186596,225.57,225.49,2.217]
[1733225690800,13.84296596,225.6,225.46,14.71186596]
[1733225691600,13.84296596,225.6,225.53,2.2165]
[1733225691801,13.84296596,225.6,225.46,14.71186596]
[1733225692202,13.84296596,225.6,225.53,2.2165]
[1733225692405,13.84296596,225.6,225.46,14.71186596]
[1733225692602,13.84296596,225.6,225.53,2.2165]
[1733225693206,13.84296596,225.6,225.54,2.2165]
[1733225693505,13.84296596,225.6,225.46,14.71186596]
[1733225694006,13.84296596,225.6,225.5,2.2169]
[1733225694208,13.84296596,225.6,225.46,14.71186596]
[1733225696014,13.84296596,225.6,225.52,2.2167]
[1733225696809,13.84296596,225.6,225.46,14.71186596]
[1733225697509,13.84296596,225.6,225.52,2.2167]
[1733225698112,13.84296596,225.6,225.52,2.2166]
[1733225698306,13.84296596,225.6,225.46,14.71186596]
[1733225699608,7.98121255,225.53,225.46,2.26]
[1733225700307,7.98121255,225.53,225.47,2.2172]
[1733225700607,1.3911,225.6,225.41,57.66396056]
[1733225700608,7.98121255,225.49,225.41,57.66396056]
[1733225700811,7.98121255,225.45,225.39,2.26]
[1733225701316,7.98121255,225.43,225.39,2.26]
[1733225701508,7.98121255,225.43,225.39,4.478]
[1733225701707,12.48090953,225.47,225.39,4.478]
[1733225701911,12.48090953,225.47,225.39,2.26]
[1733225703108,2.5974,225.5,225.39,2.26]
[1733225703311,12.48090953,225.52,225.39,14.74090953]
[1733225703509,12.48090953,225.52,225.42,2.2176]
[1733225703709,12.48090953,225.52,225.39,14.74090953]
[1733225704113,12.48090953,225.52,225.41,2.2177]
[1733225704306,12.48090953,225.49,225.41,2.2177]
[1733225704510,12.48090953,225.49,225.39,2.26]
[1733225704710,12.48090953,225.46,225.39,4.4779]
[1733225705107,12.48090953,225.46,225.39,2.26]
[1733225705313,12.48090953,225.49,225.39,2.26]
[1733225706207,12.48090953,225.49,225.41,2.2178]
[1733225706612,12.48090953,225.49,225.4,2.2179]